bitfinex/quotes_ETHUSD_20241207
["timestamp","ask_amount","ask_price","bid_price","bid_amount"]
[1733534148156,0.7807,3997.9,3996.8,0.35027]
[1733534149661,0.7807,3997.9,3997.0,0.35026]
[1733534149861,0.7807,3997.9,3996.5,1.1353]
[1733534149862,0.7807,3997.9,3996.6,0.35029]
[1733534150071,0.7807,3997.9,3996.5,0.785]
[1733534150291,0.7807,3997.9,3996.7,0.35028]
[1733534150505,0.7807,3997.9,3997.1,0.35025]
[1733534151003,0.7807,3997.9,3996.8,0.35027]
[1733534151303,0.7807,3997.9,3996.5,0.785]
[1733534151304,2.53162,3997.9,3996.6,0.35029]
[1733534152022,0.8001,3997.5,3995.8,1.10516]
[1733534152190,1.03669804,3998.7,3995.8,1.10516]
[1733534152191,0.8001,3997.4,3995.8,0.7548]
[1733534152364,2.55124,3997.4,3996.2,0.35032]
[1733534152763,2.55124,3997.4,3996.3,0.35032]
[1733534153159,0.8001,3997.4,3996.3,0.35032]
[1733534153365,0.8001,3997.4,3996.4,0.35031]
[1733534153561,1.055216,3997.4,3996.4,0.35031]
[1733534154223,0.8001,3997.3,3996.4,0.35031]
[1733534155921,0.8001,3997.3,3996.4,0.3503]
[1733534156526,0.8001,3997.3,3996.5,3.0]
[1733534156708,0.8001,3997.3,3996.7,0.35028]
[1733534156908,0.8001,3997.3,3996.5,3.0]
[1733534157259,1.60813366,3998.4,3996.4,0.7548]
[1733534157260,0.8001,3997.7,3996.7,3.0]
[1733534157409,0.8001,3997.7,3996.4,0.7548]
[1733534157611,1.75114,3997.4,3996.0,0.35034]
[1733534157909,0.8001,3997.3,3996.2,3.0]
[1733534158223,1.75127,3997.1,3995.5,0.7548]
[1733534158432,1.75144,3996.7,3995.5,1.10519]
[1733534158736,0.8001,3996.6,3995.5,0.35039]
[1733534159546,0.8001,3995.8,3994.4,0.7548]
[1733534159758,0.8001,3995.8,3994.6,0.35046]
[1733534160055,1.055289,3995.8,3994.9,0.35044]
[1733534160343,1.055289,3995.8,3994.4,0.7548]
[1733534160529,0.8001,3995.8,3994.4,0.7548]
[1733534160745,0.8001,3995.8,3994.4,1.10528]
[1733534161046,0.8001,3995.8,3995.1,0.35042]
[1733534161547,0.8001,3995.8,3994.4,0.7548]
[1733534161759,0.8001,3995.8,3995.3,0.3504]
[1733534162046,0.8001,3995.8,3994.8,0.02502793]
[1733534162245,0.8001,3996.8,3995.7,0.35037]
[1733534162456,0.8001,3996.8,3995.8,0.35036]
[1733534162457,0.2726567,3996.7,3995.8,0.35036]
[1733534162636,0.8001,3996.8,3995.9,0.35035]
[1733534163009,0.8001,3996.8,3995.2,0.7548]
[1733534163215,0.8001,3996.8,3995.7,0.35037]
[1733534163410,0.8001,3997.2,3994.7,0.7548]
[1733534163673,0.8001,3997.2,3995.2,0.35041]
[1733534163674,0.8001,3996.4,3995.2,0.35041]
[1733534163942,1.75131,3997.0,3994.7,1.10525]
[1733534163943,2.55182,3996.1,3994.7,1.10525]
[1733534164107,2.55182,3996.1,3994.8,0.35045]
[1733534164108,0.55,3996.0,3994.8,0.35045]
[1733534164964,2.30175,3996.0,3994.8,0.35045]
[1733534165147,0.55,3995.8,3994.8,0.35045]
[1733534165508,0.55,3995.6,3994.5,0.35048]
[1733534165752,0.55,3995.6,3993.9,0.7548]
[1733534165753,0.55,3995.6,3994.6,0.35047]
[1733534166453,0.8001,3995.7,3994.6,0.35047]
[1733534166833,0.8001,3995.7,3994.2,0.3505]
[1733534167010,0.2862155,3995.6,3994.7,0.35046]
[1733534167360,0.8001,3995.4,3994.3,0.35049]
[1733534169251,0.7812,3995.5,3994.0,0.35052]
[1733534169448,0.7812,3995.1,3994.1,0.35051]
[1733534169661,0.55,3994.8,3993.9,3.0]
[1733534169847,0.55,3994.8,3993.3,0.7928]
[1733534169848,0.55,3994.8,3993.3,1.14338]
[1733534170072,0.7812,3994.7,3993.3,0.7928]
[1733534170271,0.7812,3994.7,3993.5,0.35056]
[1733534170490,0.7812,3994.7,3993.6,0.35055]
[1733534170791,0.7812,3994.7,3993.7,0.35055]
[1733534171154,0.7812,3994.5,3993.3,0.35058]
[1733534171460,0.7812,3994.5,3992.7,0.35063]
[1733534171461,1.3312,3994.1,3993.0,0.3506]
[1733534171649,0.55,3993.9,3992.7,0.7928]
[1733534171876,0.7812,3993.8,3992.6,0.005]
[1733534172089,0.7812,3994.2,3992.9,0.35062]
[1733534172302,0.7812,3995.6,3993.7,0.7928]
[1733534172450,0.7812,3995.6,3994.5,0.35048]
[1733534172658,0.7812,3995.6,3993.8,0.47500056]
[1733534172857,0.7812,3995.6,3994.8,0.35045]
[1733534173204,0.7812,3995.6,3994.9,0.35044]
[1733534173510,0.7812,3995.6,3994.5,0.02503159]
[1733534173735,0.7812,3996.0,3995.4,0.35039]
[1733534174255,0.7812,3996.0,3995.1,0.35042]
[1733534175399,0.55,3995.9,3994.2,0.7928]
[1733534175556,0.55,3995.7,3994.2,0.7928]
[1733534175754,0.55,3995.7,3994.8,3.0]
[1733534175986,0.55,3995.5,3994.5,0.35047]
[1733534176389,0.55,3995.5,3993.9,0.35052]
[1733534176390,0.55,3995.5,3994.2,0.3505]
[1733534176898,0.55,3995.5,3994.3,0.35049]
[1733534177067,1.88499,3995.8,3993.6,0.35055]
[1733534177068,0.55,3995.1,3993.6,0.35055]
[1733534177272,1.3312,3994.9,3993.7,0.35055]
[1733534177789,1.3312,3994.9,3993.4,0.35057]
[1733534177957,1.3312,3994.9,3993.5,0.35056]
[1733534178299,0.55,3994.7,3993.5,0.35056]
[1733534178503,1.75219,3995.0,3993.2,0.35059]
[1733534178504,0.7812,3994.4,3993.2,0.35059]
[1733534178702,0.7812,3994.4,3993.0,0.3506]
[1733534178703,0.55,3994.3,3993.0,0.3506]
[1733534178859,0.55,3994.1,3993.0,0.3506]
[1733534179296,0.55,3994.1,3993.2,0.35059]
[1733534179460,0.55,3994.1,3993.4,0.35057]
[1733534179791,0.7812,3994.2,3993.1,0.3506]
[1733534179971,0.7812,3994.2,3993.6,0.35055]
[1733534180297,0.7812,3994.2,3993.3,0.35058]
[1733534180594,0.91432,3994.6,3994.1,0.3505]
[1733534182657,0.91432,3994.6,3993.4,3.7928]
[1733534182658,0.91432,3994.6,3994.2,0.3505]
[1733534182864,0.91432,3994.6,3994.1,0.3505]
[1733534183058,0.91432,3994.6,3993.7,0.35055]
[1733534183294,0.91432,3994.6,3994.5,0.35048]
[1733534183295,0.7812,3994.6,3994.5,0.35048]
[1733534183497,0.753,3995.3,3993.7,3.0]
[1733534183671,0.753,3995.3,3994.2,0.3505]
[1733534183905,0.753,3995.3,3993.9,0.02503483]
[1733534184145,0.753,3995.3,3994.2,0.3505]
[1733534184702,0.753,3995.3,3993.7,3.0]
[1733534185023,0.753,3995.3,3993.8,0.02503685]
[1733534185209,0.753,3995.3,3994.6,0.35046]
[1733534185620,0.753,3995.3,3994.1,0.35051]
[1733534185818,0.753,3995.3,3994.4,0.35049]
[1733534186223,0.753,3995.3,3993.9,3.0]
[1733534186741,0.753,3995.1,3993.8,0.35054]
[1733534187047,0.753,3994.9,3993.8,0.35054]
[1733534187409,0.753,3994.9,3993.2,0.35058]
[1733534187607,0.753,3994.9,3993.8,0.35053]
[1733534188149,0.753,3994.8,3993.5,0.35056]
[1733534188436,0.753,3994.8,3993.4,0.35057]
[1733534188639,0.8197,3994.6,3993.4,0.35057]
[1733534189010,0.8197,3994.6,3993.1,0.3506]
[1733534189011,0.8197,3994.5,3993.1,0.3506]
[1733534189212,0.8197,3994.5,3993.2,0.35059]
[1733534189855,0.8197,3994.5,3992.7,1.16823]
[1733534190037,0.8197,3994.5,3993.3,0.35058]
[1733534190359,3.1,3995.2,3993.5,0.35056]
[1733534190360,0.8197,3994.3,3993.5,0.35056]
[1733534190956,0.8197,3994.3,3993.1,3.0]
[1733534191155,0.8197,3994.3,3993.6,0.35055]
[1733534191368,0.8197,3994.3,3992.7,3.8176]
[1733534191677,0.8197,3994.3,3992.8,0.35063]
[1733534191844,0.8197,3994.3,3993.2,0.35059]
[1733534192326,3.29563869,3995.0,3992.9,0.35061]
[1733534192327,0.8197,3994.1,3992.9,0.35061]
[1733534192528,0.8197,3994.1,3992.7,3.0]
[1733534192732,0.8197,3994.1,3992.6,0.35564]
[1733534192934,0.8197,3994.1,3993.1,0.3506]
[1733534193332,0.8197,3994.1,3993.6,0.35055]
[1733534194446,0.8197,3994.1,3993.1,0.3506]
[1733534194872,0.8197,3994.1,3993.0,0.8176]
[1733534195039,0.8197,3994.1,3993.2,0.35058]
[1733534195476,0.8197,3994.1,3993.5,0.35056]
[1733534196178,0.8197,3994.1,3993.2,0.35058]
[1733534196740,0.8197,3994.1,3993.3,0.35058]
[1733534197382,0.8197,3994.1,3993.0,0.35061]
[1733534197536,0.8197,3994.1,3992.9,3.0]
[1733534197875,0.8197,3993.9,3992.8,0.35063]
[1733534198084,1.076934,3993.8,3992.8,0.35063]
[1733534198454,0.8197,3993.7,3992.7,0.35063]
[1733534198641,0.8197,3993.7,3992.8,0.35063]
[1733534198863,0.8197,3993.7,3992.6,0.005]
[1733534199189,0.8197,3993.7,3993.2,0.35059]
[1733534199392,0.8197,3993.7,3992.6,0.005]
[1733534199709,0.8197,3993.7,3992.8,0.35062]
[1733534200007,0.8197,3993.7,3992.6,0.005]
[1733534200193,1.75268,3993.9,3992.7,0.35063]
[1733534200194,0.8197,3993.5,3992.7,0.35063]
[1733534200570,0.8197,3993.5,3992.8,0.35063]
[1733534201706,0.8197,3993.5,3992.6,0.005]
[1733534202003,0.8197,3993.5,3993.0,0.35061]
[1733534202917,0.8197,3993.5,3992.6,0.03004458]
[1733534203073,0.8197,3993.5,3992.6,0.005]
[1733534203269,0.8197,3993.5,3993.2,0.35059]
[1733534203582,0.8197,3993.5,3992.7,3.0]
[1733534203787,0.8197,3993.5,3992.6,0.005]
[1733534204102,0.8197,3993.5,3992.7,3.0]
[1733534204284,0.7535,3994.1,3992.6,0.005]
[1733534204492,4.03669804,3994.4,3992.6,0.005]
[1733534204493,0.7535,3993.9,3992.6,0.005]
[1733534204821,0.7535,3993.9,3993.2,0.35059]
[1733534205109,0.7535,3993.9,3992.7,0.35063]
[1733534205608,0.7535,3993.9,3993.1,0.3506]
[1733534206348,0.7535,3993.9,3992.9,0.35062]
[1733534206671,0.7535,3993.8,3992.7,0.35063]
[1733534206915,0.7535,3993.6,3992.7,0.35063]
[1733534207287,0.7535,3993.6,3992.6,0.005]
[1733534207619,1.75283,3993.6,3992.6,0.005]
[1733534207784,0.7535,3993.5,3992.6,0.005]
[1733534208405,0.7535,3993.5,3992.6,0.35564]
[1733534209083,0.7535,3993.5,3992.6,0.005]
[1733534209284,0.2756929,3993.4,3992.6,0.005]
[1733534209815,1.75289,3993.4,3992.6,0.005]
[1733534210142,0.7535,3993.5,3992.6,0.005]
[1733534210143,0.7954,3993.5,3992.6,0.005]
[1733534210693,0.7954,3993.5,3992.7,0.35063]
[1733534210890,1.75303,3993.1,3992.6,0.005]
[1733534211199,1.75319,3992.7,3992.6,0.005]
[1733534211400,0.7954,3992.3,3991.2,0.70139]
[1733534211601,0.7954,3992.3,3991.5,0.35074]
[1733534212891,0.7954,3992.3,3991.6,0.35073]
[1733534213628,0.7954,3992.3,3991.2,0.759]
[1733534213928,0.7954,3992.3,3990.8,0.759]
[1733534214092,0.7954,3992.3,3991.1,3.0]
[1733534214293,0.254869,3992.2,3991.3,0.35076]
[1733534214517,0.254869,3992.2,3990.8,0.759]
[1733534214716,0.7954,3992.3,3991.5,0.35073]
[1733534215125,0.7954,3992.3,3991.1,0.02505352]
[1733534215331,0.7954,3992.3,3991.7,0.35072]
[1733534215627,0.7954,3992.3,3990.8,0.759]
[1733534215628,0.7954,3992.3,3991.1,3.0]
[1733534215838,0.7954,3992.3,3990.9,0.35079]
[1733534216003,0.7954,3992.3,3991.0,0.35078]
[1733534216203,0.25487,3992.2,3991.3,0.35076]
[1733534216505,0.25487,3992.2,3991.1,3.0]
[1733534216710,0.7954,3992.3,3991.1,3.0]
[1733534217014,0.7954,3992.3,3990.9,0.35079]
[1733534217334,0.7954,3992.3,3991.1,3.0]
[1733534217533,0.7954,3993.4,3991.9,0.3507]
[1733534217749,0.7954,3993.2,3992.3,0.35067]
[1733534218162,0.7954,3993.2,3993.0,0.35061]
[1733534218315,0.7954,3993.2,3993.0,0.3506]
[1733534218648,8.94,3994.5,3992.1,3.0]
[1733534218649,0.7954,3994.1,3993.2,0.35059]
[1733534219121,0.7954,3994.1,3993.1,0.3506]
[1733534219728,0.7954,3994.1,3993.2,0.35059]
[1733534220222,0.7954,3994.1,3993.3,0.35057]
[1733534221253,0.7954,3994.1,3992.6,0.759]
[1733534221254,0.7954,3994.1,3993.5,0.35056]
[1733534221548,0.7954,3994.1,3992.6,0.759]
[1733534221751,0.7954,3994.1,3992.6,1.13740431]
[1733534221924,0.7954,3994.1,3993.9,0.35053]
[1733534222554,0.7954,3994.1,3993.7,0.35055]
[1733534222854,0.7954,3994.1,3993.4,0.35057]
[1733534223055,0.7954,3994.1,3992.7,3.0]
[1733534223269,0.7954,3994.1,3993.6,0.35055]
[1733534223556,0.7954,3994.1,3993.7,0.35055]
[1733534224319,0.7954,3994.1,3993.1,0.35059]
[1733534224526,0.7954,3994.1,3992.7,0.35063]
[1733534224718,0.7954,3994.1,3993.7,0.35054]
[1733534225460,0.7954,3994.1,3991.8,0.759]
[1733534225626,0.7954,3993.9,3992.7,0.35063]
[1733534225819,0.7954,3993.9,3991.8,0.759]
[1733534225820,0.7954,3993.8,3991.8,1.10971]
[1733534226073,0.7954,3993.5,3992.3,0.35067]
[1733534226222,0.7954,3993.4,3991.3,0.759]
[1733534226424,1.75298,3993.2,3990.6,2.09180427]
[1733534226632,0.7954,3992.7,3990.8,0.759]
[1733534226925,2.54862,3992.7,3990.8,0.759]
[1733534227120,0.7954,3992.7,3991.5,0.35074]
[1733534227325,0.79238535,3992.7,3991.5,0.35074]
[1733534227633,0.79238535,3992.7,3991.0,0.35078]
[1733534227634,0.79238535,3992.7,3991.0,0.02505218]
[1733534227836,0.79238535,3992.7,3991.2,0.759]
[1733534228039,0.79238535,3992.7,3992.2,0.35068]
[1733534228441,1.03669804,3993.8,3992.0,0.7639]
[1733534228759,3.0,3993.9,3992.4,0.35066]
[1733534228760,1.75276,3993.7,3992.4,0.35066]
[1733534229124,3.0,3993.7,3991.5,0.7639]
[1733534229466,1.75284,3993.5,3991.2,0.7639]
[1733534229626,3.98065242,3993.4,3991.8,0.35071]
[1733534229964,1.75303,3993.1,3991.8,0.35071]
[1733534230347,2.51047,3993.0,3991.4,3.0]
[1733534230554,2.51047,3993.0,3991.7,0.17536]
[1733534230935,0.7574,3993.0,3991.4,3.0]
[1733534231138,0.7574,3992.4,3991.2,0.17538]
[1733534231340,0.25107,3992.3,3991.2,0.17538]
[1733534231541,0.25107,3992.3,3990.8,0.7639]
[1733534231763,0.7574,3992.4,3991.5,0.17537]
[1733534231939,0.7574,3992.4,3991.2,0.17538]
[1733534232475,0.7574,3992.8,3990.4,0.7639]
[1733534232629,2.51073,3992.4,3990.6,0.17541]
[1733534232834,1.75328,3992.5,3990.8,0.1754]
[1733534232835,0.7574,3992.3,3990.8,0.1754]
[1733534233035,0.251068,3992.2,3990.8,0.1754]
[1733534233273,1.7535,3992.1,3990.8,0.1754]
[1733534233447,1.7535,3992.1,3990.4,0.7639]
[1733534233970,1.7535,3992.1,3989.4,2.21685962]
[1733534233971,0.7574,3991.6,3990.1,0.7639]
[1733534234134,1.75382,3991.3,3990.1,0.7639]
[1733534234334,0.7574,3991.4,3989.7,0.7639]
[1733534234572,2.51119,3991.4,3989.7,0.7639]
[1733534235067,2.51119,3991.4,3990.0,0.17543]
[1733534235269,0.7574,3991.4,3989.7,0.7639]
[1733534235433,1.75381,3991.3,3989.8,0.17544]
[1733534235632,0.7574,3991.4,3989.9,0.17543]
[1733534235633,2.004981,3991.2,3989.9,0.17543]
[1733534235835,1.75396,3991.0,3989.7,0.7639]
[1733534236036,0.7574,3990.9,3989.7,0.7639]
[1733534236804,0.7574,3990.9,3989.9,0.17543]
[1733534237734,2.51141,3990.9,3989.7,0.7639]
[1733534238043,0.251141,3990.8,3989.7,0.7639]
[1733534238369,0.7574,3990.9,3989.7,0.7639]
[1733534238882,1.75403,3990.8,3989.7,0.7639]
[1733534239253,0.7574,3990.9,3989.7,0.7639]
[1733534239469,1.75422,3990.4,3989.0,0.17548]
[1733534239640,0.251162,3990.3,3989.0,0.17548]
[1733534240202,1.75439,3990.0,3988.5,0.3418144]
[1733534240400,1.75443,3989.9,3988.5,0.3418144]
[1733534240555,1.75443,3989.9,3988.6,0.17549]
[1733534241176,1.75438,3990.0,3988.6,0.17549]
[1733534241458,2.005608,3989.9,3988.6,0.17549]
[1733534242192,1.75448,3989.8,3988.6,0.17549]
[1733534242376,0.251178,3989.9,3988.5,0.1663144]
[1733534242377,1.75452,3989.7,3988.5,0.1663144]
[1733534242558,1.75452,3989.7,3988.5,0.3418144]
[1733534242760,1.75441,3990.0,3988.7,0.17549]
[1733534243161,1.75444,3989.9,3988.7,0.17549]
[1733534243387,0.55,3990.0,3988.9,0.17548]
[1733534243589,0.7574,3990.1,3988.6,0.7639]
[1733534243786,0.7574,3990.1,3988.7,0.17549]
[1733534243987,1.75428,3990.3,3989.0,0.17548]
[1733534244194,0.7574,3990.0,3988.8,0.17549]
[1733534244356,1.75444,3989.9,3988.6,0.7639]
[1733534245071,0.7574,3990.0,3988.6,0.7639]
[1733534245278,1.75447,3989.8,3988.6,0.7639]
[1733534245495,0.55,3989.6,3988.7,0.17549]
[1733534245901,0.55,3989.6,3988.6,0.7639]
[1733534246061,0.55,3989.4,3988.6,0.7639]
[1733534246401,0.7574,3990.5,3989.0,0.7639]
[1733534246709,0.7574,3991.1,3989.2,0.7639]
[1733534246908,0.7574,3991.1,3989.4,0.7639]
[1733534247057,0.251128,3991.0,3989.6,0.7639]
[1733534247258,8.94,3991.7,3989.5,0.17546]
[1733534247259,1.75369,3991.6,3990.4,0.17541]
[1733534247802,1.75382,3991.3,3990.1,0.7639]
[1733534247974,1.7539,3991.1,3990.1,0.7639]
[1733534248178,0.7574,3990.8,3990.1,0.7639]
[1733534248407,0.7574,3990.8,3989.6,0.17545]
[1733534248408,2.51144,3990.8,3989.7,0.8002]
[1733534248578,0.251144,3990.7,3989.7,0.97565]
[1733534248950,0.7734,3991.1,3989.8,0.20050282]
[1733534249218,2.004498,3992.2,3990.5,0.8002]
[1733534249219,0.7734,3991.5,3990.5,0.8002]
[1733534249586,10.944498,3992.2,3990.6,0.1754]
[1733534249587,0.251068,3992.2,3990.6,0.1754]
[1733534249910,0.251068,3992.2,3990.5,0.8002]
[1733534249911,0.7734,3992.1,3990.5,0.8002]
[1733534250222,1.75371,3991.6,3990.5,0.8002]
[1733534250511,2.5269,3992.1,3991.0,0.17539]
[1733534250512,0.175371,3991.5,3991.0,0.17539]
[1733534250711,0.7734,3992.1,3990.1,0.17543]
[1733534250712,0.7734,3992.1,3991.1,0.17538]
[1733534250910,0.7734,3992.1,3990.7,0.8002]
[1733534251118,0.7734,3992.1,3991.1,0.17538]
[1733534251486,0.7734,3992.1,3991.2,0.17538]
[1733534251785,0.251068,3992.2,3991.3,0.8002]
[1733534251991,1.0944398,3992.1,3991.3,0.8002]
[1733534252189,1.0944398,3992.1,3991.4,0.17537]
[1733534252422,1.0944398,3992.1,3991.3,0.8002]
[1733534252423,1.39259188,3992.6,3991.5,0.17537]
[1733534252717,0.61919188,3992.6,3991.4,0.17537]
[1733534252919,0.61919188,3992.6,3992.2,0.8002]
[1733534253939,0.61919188,3992.6,3992.5,0.17532]
[1733534254215,1.81009804,3994.2,3992.5,0.17532]
[1733534254216,0.7734,3994.2,3992.5,0.8002]
[1733534254391,1.75281,3993.6,3992.5,0.8002]
[1733534254577,0.7734,3993.5,3992.5,0.8002]
[1733534254984,0.7734,3994.0,3992.5,0.8002]
[1733534255238,0.7734,3994.0,3992.5,0.97552]
[1733534255409,2.52605,3994.0,3992.7,0.17531]
[1733534255609,0.252605,3993.9,3992.5,0.8002]
[1733534255815,0.252605,3993.9,3992.6,0.0250449]
[1733534255981,0.7734,3994.0,3992.5,0.8002]
[1733534256183,0.7734,3994.4,3993.4,0.8002]
[1733534257474,0.7734,3994.9,3993.5,0.17528]
[1733534257889,0.7734,3994.9,3993.4,0.8002]
[1733534258528,1.75238,3994.6,3993.4,0.8002]
[1733534258679,0.175238,3994.5,3993.4,0.97548]
[1733534258879,0.55,3994.8,3993.4,0.8002]
[1733534259347,0.55,3994.5,3993.4,0.8002]
[1733534259695,1.7522,3995.0,3993.5,0.97548]
[1733534259953,1.7522,3995.0,3993.5,0.8002]
[1733534259954,0.17522,3994.9,3993.5,0.8002]
[1733534260159,0.7734,3995.0,3993.5,0.8002]
[1733534260369,9.97669804,3996.0,3993.5,0.8002]
[1733534260520,2.338,3996.1,3993.5,0.8002]
[1733534260521,0.7734,3995.4,3993.7,0.8002]
[1733534260721,2.52521,3995.9,3993.8,0.02503432]
[1733534260948,2.52521,3995.9,3994.5,0.8002]
[1733534261154,2.52521,3995.9,3994.7,0.17523]
[1733534261155,0.486321,3995.8,3994.7,0.17523]
[1733534261421,0.486321,3995.8,3994.5,0.82523328]
[1733534261422,0.486321,3995.8,3994.8,0.17522]
[1733534261765,2.52505,3996.3,3994.9,0.17522]
[1733534261962,1.81009804,3997.0,3994.6,0.02503019]
[1733534262146,1.75153,3996.5,3994.6,0.20026019]
[1733534262351,1.75153,3996.5,3994.6,0.17523]
[1733534262552,1.75142,3996.8,3994.8,0.17522]
[1733534262757,0.252482,3996.7,3994.8,0.17522]
[1733534262941,0.252482,3996.7,3994.9,0.17522]
[1733534263146,0.252482,3996.7,3995.0,0.17521]
[1733534263366,0.252482,3996.7,3994.8,3.0]
[1733534263565,0.7734,3997.2,3994.8,3.0]
[1733534263566,1.7515,3996.6,3994.8,3.0]
[1733534264131,0.7734,3997.2,3994.1,0.02502565]
[1733534264337,1.75154,3996.5,3993.9,0.02502565]
[1733534264580,1.75159,3996.4,3994.8,3.0]
[1733534264739,1.75158,3996.4,3994.9,0.8002]
[1733534264937,0.175158,3996.3,3994.9,0.8002]
[1733534265278,1.75158,3996.4,3994.9,0.8002]
[1733534265570,1.75166,3996.3,3995.1,3.0]
[1733534265771,1.75179,3995.9,3994.9,0.8002]
[1733534265933,0.7734,3996.0,3994.9,0.8002]
[1733534265934,1.75198,3995.5,3994.9,0.8002]
[1733534266129,1.75198,3995.5,3993.5,0.17528]
[1733534266130,0.175198,3995.4,3993.5,0.17528]
[1733534266363,1.927208,3995.4,3993.5,0.17528]
[1733534267071,0.175198,3995.4,3994.5,3.0]
[1733534267276,1.7518,3995.9,3994.5,3.0]
[1733534267475,0.7734,3995.6,3994.5,3.0]
[1733534267775,0.7734,3995.6,3992.9,0.02502959]
[1733534267776,1.75208,3995.3,3993.4,0.17528]
[1733534268680,1.75208,3995.3,3994.3,3.0]
[1733534268983,0.175208,3995.2,3994.3,3.0]
[1733534269175,2.5815,3996.2,3994.3,3.0]
[1733534269395,0.8298,3996.2,3994.4,0.7843]
[1733534269596,1.75178,3996.0,3994.4,0.7843]
[1733534269746,0.8298,3996.2,3994.4,0.7843]
[1733534269943,1.75183,3995.9,3994.4,0.7843]
[1733534270144,1.927033,3995.8,3994.4,0.7843]
[1733534270550,0.175183,3995.8,3994.4,0.7843]
[1733534270893,1.75219,3995.0,3994.4,0.7843]
[1733534271090,1.75192,3995.6,3994.4,0.7843]
[1733534271254,0.8298,3995.7,3993.2,0.7843]
[1733534271455,1.75201,3995.4,3993.2,0.7843]
[1733534271649,1.75249,3994.3,3993.2,0.7843]
[1733534271957,1.75254,3994.2,3993.2,0.7843]
[1733534272798,1.75254,3994.2,3993.6,3.0]
[1733534272956,1.75245,3994.4,3993.6,3.0]
[1733534273152,1.75234,3994.7,3993.6,3.0]
[1733534273384,0.175234,3994.6,3993.6,3.0]
[1733534273590,0.175234,3994.6,3993.7,0.80933605]
[1733534273896,1.75219,3995.0,3994.0,0.7843]
[1733534274477,0.175201,3995.3,3994.0,0.7843]
[1733534274687,1.75216,3995.1,3994.0,0.7843]
[1733534275192,0.8298,3995.2,3994.0,0.7843]
[1733534275420,1.75241,3994.5,3993.6,0.7843]
[1733534275556,1.927691,3994.4,3993.6,0.7843]
[1733534275764,1.75245,3994.4,3993.6,3.7843]
[1733534276293,1.75245,3994.4,3993.6,0.7843]
[1733534276495,1.75222,3995.0,3993.6,0.7843]
[1733534276679,0.8298,3994.3,3992.7,0.35063]
[1733534276879,0.8298,3994.3,3992.1,0.35068]
[1733534276880,1.75254,3994.2,3992.8,0.7843]
[1733534277070,0.258234,3994.1,3992.9,0.7843]
[1733534277389,0.258234,3994.1,3992.9,1.13491]
[1733534277593,0.258234,3994.1,3993.0,0.35061]
[1733534277799,1.75246,3994.4,3993.1,0.7843]
[1733534278397,1.927271,3995.3,3993.3,3.7843]
[1733534278600,2.58201,3995.0,3993.4,0.35057]
[1733534278903,2.58201,3995.0,3993.6,0.35056]
[1733534279205,2.58201,3995.0,3993.8,3.0]
[1733534279567,0.8298,3995.0,3993.7,0.7843]
[1733534279773,2.58199,3995.0,3993.8,3.0]
[1733534279970,0.258199,3994.9,3993.8,3.0]
[1733534280568,0.258199,3994.9,3993.7,1.13485]
[1733534280569,1.7521,3995.2,3994.0,3.0]
[1733534280767,1.7521,3995.2,3993.9,0.35053]
[1733534281310,1.7521,3995.2,3993.7,1.13484]
[1733534281538,1.75223,3994.9,3993.7,0.7843]
[1733534281807,1.75223,3994.9,3993.8,3.0]
[1733534282014,0.175223,3994.8,3993.8,3.0]
[1733534282176,0.8298,3995.4,3993.1,0.35059]
[1733534282177,0.8298,3995.4,3994.0,0.8286]
[1733534282374,0.8298,3995.4,3994.3,0.35049]
[1733534283066,0.8298,3995.4,3994.1,0.35051]
[1733534283471,2.58182,3995.4,3994.1,0.35051]
[1733534284023,0.8298,3995.4,3994.1,0.35051]
[1733534284219,1.7521,3995.2,3994.0,0.8286]
[1733534284385,0.25819,3995.1,3994.0,0.8286]
[1733534284582,0.25819,3995.1,3994.0,1.17912]
[1733534284797,0.55,3995.0,3994.1,0.37554425]
[1733534284998,0.25819,3995.1,3994.1,0.02503425]
[1733534285186,0.55,3995.6,3994.5,0.35048]
[1733534285403,1.3468,3995.6,3994.6,0.8286]
[1733534286007,1.3468,3995.6,3994.6,1.17906]
[1733534286186,1.3468,3995.6,3994.6,0.8286]
[1733534286389,1.3468,3995.6,3994.6,4.17907]
[1733534286613,0.3273853,3995.5,3994.9,0.35044]
[1733534286819,0.175183,3995.8,3994.9,0.35044]
[1733534287190,0.175183,3995.8,3994.6,3.8286]
[1733534287539,0.7968,3996.2,3995.2,0.35041]
[1733534287835,0.18463812,3996.1,3995.2,0.35041]
[1733534288030,0.18463812,3996.0,3995.2,0.35041]
[1733534288335,0.7968,3996.2,3994.6,3.8286]
[1733534288631,0.8086,3995.4,3994.2,0.7541]
[1733534288844,1.75205,3995.3,3994.2,0.7541]
[1733534289137,0.55,3995.2,3994.2,1.1046]
[1733534289287,0.55,3995.0,3994.2,0.7541]
[1733534289628,0.311065,3995.1,3994.2,0.7541]
[1733534289798,2.30209,3995.3,3994.2,0.7541]
[1733534290002,0.18467017,3995.2,3994.2,0.7541]
[1733534290207,0.55,3995.3,3994.2,0.7541]
[1733534290529,0.18469621,3995.2,3994.2,0.7541]
[1733534290732,0.18469621,3995.1,3994.2,0.7541]
[1733534291028,0.32953662,3995.1,3994.2,1.1046]
[1733534291226,0.55,3995.0,3994.2,0.7541]